bitfinex/quotes_SOLUSD_20251103
["timestamp","ask_amount","ask_price","bid_price","bid_amount"]
[1762173842094,3.81527219,176.3,176.27,23.38828456]
[1762173842294,0.67,176.31,176.27,23.38828456]
[1762173842504,3.81693701,176.3,176.27,23.38828456]
[1762173842697,0.67,176.31,176.27,20.55590286]
[1762173843024,3.81698141,176.3,176.27,20.55590286]
[1762173843192,3.81698141,176.29,176.27,20.55590286]
[1762173843393,0.67,176.31,176.28,0.7]
[1762173843596,3.81895274,176.3,176.27,20.55590286]
[1762173843802,3.81895274,176.29,176.27,20.55590286]
[1762173844002,0.67,176.31,176.27,20.55590286]
[1762173844218,2.8323817,176.29,176.27,5.6731151]
[1762173844433,7.32133516,176.28,176.22,0.7]
[1762173844714,2.8323817,176.26,176.24,20.592]
[1762173844900,3.81895346,176.25,176.24,20.592]
[1762173845427,3.81895346,176.25,176.23,6.37440276]
[1762173845604,3.5023817,176.27,176.23,6.37440276]
[1762173845925,4.49025014,176.26,176.23,5.67440276]
[1762173846108,3.82025014,176.25,176.22,19.86095576]
[1762173846309,0.67,176.26,176.22,20.56095576]
[1762173846503,3.82030728,176.25,176.22,20.56095576]
[1762173846824,3.82030728,176.24,176.22,20.56095576]
[1762173847023,0.67,176.26,176.22,20.56095576]
[1762173847223,3.82035101,176.25,176.22,20.56095576]
[1762173847404,0.67,176.26,176.22,20.56095576]
[1762173847607,3.81980599,176.25,176.22,20.56095576]
[1762173847929,4.48985043,176.24,176.22,5.67472477]
[1762173848105,3.81985043,176.23,176.21,5.67504681]
[1762173848309,0.67,176.25,176.21,20.56266385]
[1762173848508,3.81920518,176.24,176.21,20.56266385]
[1762173848828,3.81920518,176.23,176.21,20.56266385]
[1762173849000,0.67,176.25,176.21,20.56266385]
[1762173849199,3.81920518,176.24,176.21,20.56266385]
[1762173849403,3.81920518,176.23,176.21,20.56266385]
[1762173849601,0.67,176.25,176.21,20.56266385]
[1762173849811,3.81856443,176.24,176.21,20.56266385]
[1762173850005,3.81856443,176.23,176.21,5.67504681]
[1762173850209,0.67,176.24,176.21,5.67504681]
[1762173850501,3.81772951,176.23,176.21,5.67504681]
[1762173850705,3.81784555,176.22,176.2,5.67536741]
[1762173850906,3.81784555,176.21,176.2,5.67536741]
[1762173851308,4.48784555,176.21,176.2,5.67536741]
[1762173852005,4.48784555,176.21,176.18,5.67601316]
[1762173852204,0.67,176.21,176.18,5.67601316]
[1762173852428,0.67,176.2,176.18,5.67601316]
[1762173852723,4.48512504,176.2,176.18,5.67601316]
[1762173852912,0.67,176.2,176.18,5.67601316]
[1762173853517,4.4833563,176.2,176.18,5.67601316]
[1762173853713,0.67,176.2,176.18,5.67601316]
[1762173854017,3.8133563,176.2,176.17,5.67633535]
[1762173854207,0.7,176.2,176.17,5.67633535]
[1762173854405,4.5133563,176.2,176.17,6.32633535]
[1762173854631,0.7,176.2,176.17,6.32633535]
[1762173854924,4.5133563,176.2,176.17,5.67633535]
[1762173855230,0.7,176.2,176.17,6.32633535]
[1762173856405,0.7,176.2,176.17,5.67633535]
[1762173861017,2.51721963,176.2,176.17,5.67633535]
[1762173861531,0.7,176.2,176.17,5.67633535]
[1762173861711,1.81721963,176.21,176.17,5.67633535]
[1762173862039,0.72,176.2,176.17,5.67633535]
[1762173862232,0.72,176.2,176.17,6.37633535]
[1762173862422,0.72,176.2,176.17,5.67633535]
[1762173862926,3.8133563,176.22,176.17,19.86717374]
[1762173863232,0.72,176.21,176.17,22.38439337]
[1762173863617,0.72,176.21,176.18,0.7]
[1762173864023,0.72,176.21,176.19,5.67569101]
[1762173865734,0.72,176.21,176.18,5.67601316]
[1762173866938,0.72,176.21,176.17,19.86717374]
[1762173867120,2.53721963,176.21,176.17,19.86717374]
[1762173867321,1.81721963,176.2,176.17,19.86717374]
[1762173867615,2.53721963,176.2,176.17,19.86717374]
[1762173867950,1.81721963,176.2,176.17,19.86717374]
[1762173868131,2.53721963,176.19,176.17,5.67633535]
[1762173868312,0.72,176.18,176.17,5.67633535]
[1762173868918,0.72,176.18,176.16,5.67665758]
[1762173869529,2.53721963,176.2,176.16,19.86830154]
[1762173869729,0.72,176.19,176.16,20.56830154]
[1762173873324,0.72,176.19,176.16,19.86830154]
[1762173873834,2.51721963,176.2,176.16,20.52830154]
[1762173874033,0.7,176.19,176.16,20.52830154]
[1762173874745,0.7,176.19,176.16,19.86830154]
[1762173875043,0.7,176.19,176.16,20.52830154]
[1762173875839,0.7,176.19,176.16,19.86830154]
[1762173877128,1.81721963,176.18,176.15,5.77689541]
[1762173877326,1.81721963,176.17,176.15,0.1]
[1762173877846,0.7,176.16,176.15,0.1]
[1762173879424,0.7,176.18,176.15,5.77697984]
[1762173881745,2.51721963,176.18,176.15,5.77697984]
[1762173882242,0.7,176.17,176.15,5.77697984]
[1762173884733,0.7,176.17,176.15,0.1]
[1762173884734,5.63057593,176.16,176.15,0.1]
[1762173885129,6.35057593,176.16,176.15,0.1]
[1762173889946,12.02723351,176.16,176.15,0.1]
[1762173891033,6.35057593,176.16,176.15,0.1]
[1762173891555,12.16939508,176.16,176.15,0.1]
[1762173892439,32.76139508,176.16,176.15,0.1]
[1762173892847,35.03767904,176.16,176.15,0.1]
[1762173897133,44.82650673,176.16,176.15,0.1]
[1762173901481,37.33262952,176.16,176.15,0.1]
[1762173901646,44.82650673,176.16,176.15,0.1]
[1762173902365,49.55533208,176.16,176.15,0.1]
[1762173903674,20.592,176.13,176.11,0.1]
[1762173903850,5.7727375,176.12,176.11,0.1]
[1762173904052,16.28156519,176.12,176.11,0.1]
[1762173904459,22.77142918,176.12,176.11,0.1]
[1762173905766,6.4927375,176.12,176.11,0.1]
[1762173905970,12.17068435,176.12,176.11,0.1]
[1762173906142,21.95951204,176.12,176.11,0.1]
[1762173906559,27.63898201,176.12,176.11,0.1]
[1762173908373,77.63898201,176.12,176.11,0.1]
[1762173909064,127.63898201,176.12,176.11,0.1]
[1762173910874,42.55303516,176.12,176.11,0.1]
[1762173911263,48.23098201,176.12,176.11,0.1]
[1762173912266,47.51098201,176.12,176.11,0.1]
[1762173912469,34.33634556,176.12,176.11,0.1]
[1762173912667,24.54751787,176.12,176.11,0.1]
[1762173913170,25.1153563,176.12,176.11,0.1]
[1762173913491,25.25751787,176.12,176.11,0.1]
[1762173913694,32.75268435,176.12,176.11,0.1]
[1762173914175,42.54151204,176.12,176.11,0.1]
[1762173914583,48.22096554,176.12,176.11,0.1]
[1762173916363,49.24696935,176.12,176.11,0.1]
[1762173923092,99.24696935,176.12,176.11,0.1]
[1762173924070,149.24696935,176.12,176.11,0.1]
[1762173924582,183.37696935,176.12,176.11,0.1]
[1762173924886,162.78496935,176.12,176.11,0.1]
[1762173925291,167.55920235,176.12,176.11,0.1]
[1762173926081,201.80242579,176.12,176.11,0.1]
[1762173926480,198.95920235,176.12,176.11,0.1]
[1762173927762,30.38082769,176.09,176.08,0.1]
[1762173927969,37.03740743,176.09,176.08,0.1]
[1762173928170,37.70740743,176.09,176.08,0.1]
[1762173928383,39.98472816,176.09,176.08,0.1]
[1762173928969,40.12688973,176.09,176.08,0.1]
[1762173929170,45.80580392,176.09,176.08,0.1]
[1762173932197,50.58305381,176.09,176.08,0.1]
[1762173932384,45.80580392,176.09,176.08,0.1]
[1762173932898,79.93580392,176.09,176.08,0.1]
[1762173933106,97.01580392,176.09,176.08,0.1]
[1762173933718,79.93580392,176.09,176.08,0.1]
[1762173934079,97.01580392,176.09,176.08,0.1]
[1762173935190,79.93580392,176.09,176.08,0.1]
[1762173935591,84.71337674,176.09,176.08,0.1]
[1762173936187,79.79364235,176.09,176.08,0.1]
[1762173936603,79.93580392,176.09,176.08,0.1]
[1762173937607,25.07164235,176.09,176.08,0.1]
[1762173937809,19.39272816,176.09,176.08,0.1]
[1762173937987,16.69166629,176.09,176.08,0.1]
[1762173938194,25.21380392,176.09,176.08,0.1]
[1762173939408,29.99137674,176.09,176.08,0.1]
[1762173941011,27.1481533,176.09,176.08,0.1]
[1762173941212,19.53488973,176.09,176.08,0.1]
[1762173941509,25.21380392,176.09,176.08,0.1]
[1762173941713,18.86488973,176.09,176.08,0.1]
[1762173941903,26.68267703,176.09,176.08,0.77]
[1762173942108,24.4053563,176.09,176.08,0.77]
[1762173942309,3.8133563,176.09,176.08,0.77]
[1762173942512,3.8133563,176.09,176.08,6.44923671]
[1762173943091,24.4053563,176.09,176.08,9.29246015]
[1762173943307,24.4053563,176.09,176.08,6.44923671]
[1762173945016,24.4053563,176.09,176.08,9.29246015]
[1762173945017,3.8133563,176.09,176.08,9.29246015]
[1762173947803,3.8133563,176.09,176.08,6.44923671]
[1762173951602,3.8133563,176.09,176.08,0.1]
[1762173952127,3.8133563,176.09,176.08,0.78]
[1762173952311,3.8133563,176.09,176.08,6.45923671]
[1762173952709,6.65657974,176.09,176.08,0.1]
[1762173953424,7.34657974,176.09,176.08,0.1]
[1762173953604,6.65657974,176.09,176.08,0.1]
[1762173955429,3.8133563,176.09,176.08,0.78]
[1762173955614,6.65657974,176.09,176.08,0.1]
[1762173956031,13.11645149,176.09,176.08,0.1]
[1762173956914,13.11645149,176.09,176.08,0.78]
[1762173957116,3.8133563,176.09,176.08,0.1]
[1762173957314,9.49289443,176.09,176.08,0.78]
[1762173957722,9.49289443,176.09,176.08,0.1]
[1762173958120,3.8133563,176.09,176.08,6.45923671]
[1762173958630,3.8133563,176.09,176.08,0.78]
[1762173960314,3.8133563,176.09,176.08,6.45923671]
[1762173962659,3.8133563,176.09,176.08,0.78]
[1762173962940,3.8133563,176.09,176.08,6.45923671]
[1762173964628,3.8133563,176.09,176.08,9.30246015]
[1762173965832,3.82445121,176.12,176.08,23.50055192]
[1762173966034,3.82445121,176.11,176.1,2.84322344]
[1762173966247,3.82445121,176.11,176.1,8.52181514]
[1762173966420,3.82445121,176.11,176.1,9.20181514]
[1762173966932,2.84322344,176.18,176.1,23.39829441]
[1762173966933,3.82445121,176.15,176.1,23.39829441]
[1762173967116,3.82445121,176.14,176.13,2.84322344]
[1762173967521,3.82445121,176.14,176.13,3.52322344]
[1762173967919,3.82445121,176.14,176.13,0.68]
[1762173968117,20.60049694,176.19,176.13,3.52322344]
[1762173968323,3.81963142,176.18,176.14,19.8705575]
[1762173968537,3.81963142,176.17,176.14,20.5505575]
[1762173968719,3.81963142,176.16,176.15,0.68]
[1762173969437,3.81963142,176.16,176.15,6.35697984]
[1762173969835,3.81963142,176.17,176.15,6.35697984]
[1762173970136,20.592,176.18,176.15,19.86942945]
[1762173970334,20.592,176.18,176.15,22.71265289]
[1762173970638,20.592,176.18,176.16,0.68]
[1762173971131,3.81512334,176.17,176.16,0.68]
[1762173971432,20.592,176.18,176.16,0.68]
[1762173971641,20.592,176.18,176.16,6.35657926]
[1762173972137,20.592,176.18,176.16,5.67657926]
[1762173972334,20.592,176.18,176.17,0.68]
[1762173972637,20.592,176.18,176.16,5.67657926]
[1762173973029,5.45757282,176.25,176.17,3.52322344]
[1762173973334,4.49152053,176.24,176.19,2.84322344]
[1762173973527,20.592,176.22,176.2,5.67536889]
[1762173973716,3.81152053,176.21,176.2,5.67536889]
[1762173973916,3.81152053,176.23,176.2,5.67536889]
[1762173974140,3.81152053,176.22,176.2,6.32536889]
[1762173974319,3.81152053,176.23,176.21,0.65]
[1762173974525,3.81152053,176.22,176.21,0.65]
[1762173974827,3.81152053,176.24,176.21,0.65]
[1762173975022,3.81152053,176.23,176.21,0.65]
[1762173975224,3.81152053,176.24,176.21,0.65]
[1762173975523,3.81152053,176.25,176.22,5.67472477]
[1762173975739,3.81152053,176.26,176.22,5.67472477]
[1762173975925,2.84322344,176.23,176.21,5.67496223]
[1762173976123,3.52322344,176.23,176.21,5.67496223]
[1762173976532,2.84322344,176.24,176.21,5.67496223]
[1762173976941,6.65474397,176.24,176.19,19.86491854]
[1762173977240,4.49152053,176.25,176.21,0.65]
[1762173977537,2.84322344,176.24,176.21,0.65]
[1762173977742,3.52322344,176.24,176.19,19.86491854]
[1762173977936,3.52322344,176.24,176.2,0.65]
[1762173978324,2.49673809,176.24,176.2,0.65]
[1762173978522,1.81673809,176.22,176.19,5.67569101]
[1762173978726,1.81673809,176.21,176.18,23.38642348]
[1762173978924,1.81673809,176.21,176.19,0.65]
[1762173980022,1.81673809,176.2,176.17,0.65]
[1762173980222,1.81673809,176.19,176.17,0.65]
[1762173980737,1.81673809,176.18,176.16,5.67665758]
[1762173980939,1.81673809,176.18,176.16,6.32665758]
[1762173981730,1.81673809,176.18,176.17,0.65]
[1762173982747,1.81673809,176.18,176.17,6.32633535]
[1762173983138,1.81673809,176.18,176.17,5.67633535]
[1762173983829,1.81673809,176.18,176.17,0.65]
[1762173984031,1.81673809,176.18,176.16,0.65]
[1762173984336,1.81673809,176.17,176.15,6.32697984]
[1762173984539,1.81673809,176.16,176.15,5.67697984]
[1762173984736,1.81673809,176.16,176.12,6.32794685]
[1762173984936,1.81673809,176.13,176.12,6.32794685]
[1762173985251,1.81673809,176.14,176.12,5.67794685]
[1762173985439,1.81673809,176.15,176.13,0.65]
[1762173985836,1.81673809,176.14,176.12,5.67794685]
[1762173986039,1.81673809,176.14,176.12,6.32794685]
[1762173986548,1.81673809,176.14,176.13,0.65]
[1762173986752,1.81673809,176.15,176.13,0.65]
[1762173986939,5.62825862,176.15,176.13,0.65]
[1762173987134,1.81673809,176.15,176.13,0.65]
[1762173987648,5.62825862,176.15,176.12,5.67794685]
[1762173987853,1.81673809,176.15,176.13,0.65]
[1762173988058,5.62825862,176.15,176.13,0.65]
[1762173988236,1.81673809,176.15,176.13,0.65]
[1762173988436,5.62825862,176.15,176.11,14.84507754]
[1762173988638,1.81673809,176.15,176.12,0.65]
[1762173988840,3.81152053,176.15,176.13,1.81673809]
[1762173989029,3.81152053,176.19,176.13,1.81673809]
[1762173989235,3.81152053,176.18,176.16,1.81673809]
[1762173989464,3.81152053,176.2,176.16,1.81673809]
[1762173989762,3.81152053,176.19,176.18,5.67601316]
[1762173989932,3.81152053,176.22,176.18,7.49275125]
[1762173990238,3.81152053,176.21,176.19,0.65]
[1762173990438,3.81152053,176.2,176.19,0.65]
[1762173991951,3.81152053,176.21,176.19,6.32560522]
[1762173992155,3.81152053,176.2,176.19,6.32560522]
[1762173992334,3.81152053,176.21,176.2,0.65]
[1762173992735,3.81152053,176.21,176.17,14.19022833]
[1762173992953,3.81152053,176.21,176.18,0.65]
[1762173993158,5.62825862,176.22,176.18,0.65]
[1762173993345,3.81152053,176.21,176.18,0.65]
[1762173993938,3.81152053,176.21,176.19,5.67569101]
[1762173994136,3.81152053,176.22,176.19,5.67569101]
[1762173994356,3.81152053,176.21,176.2,0.65]
[1762173994541,3.81152053,176.22,176.2,2.46673809]
[1762173994752,3.81152053,176.26,176.21,1.81673809]
[1762173994942,3.81152053,176.25,176.21,0.65]
[1762173995140,3.81152053,176.24,176.22,0.65]
[1762173995346,3.81152053,176.25,176.22,0.65]
[1762173995569,3.81152053,176.24,176.22,0.65]
[1762173995766,3.81152053,176.25,176.22,0.65]
[1762173995942,3.81152053,176.24,176.23,5.67440276]
[1762173996272,3.81152053,176.25,176.23,5.67440276]
[1762173996467,3.81152053,176.24,176.23,6.32440276]
[1762173996773,3.81152053,176.25,176.23,6.32440276]
[1762173996985,3.81152053,176.24,176.21,7.4917849]
[1762173997149,3.81152053,176.27,176.22,1.81673809]
[1762173997350,3.81152053,176.26,176.22,1.81673809]
[1762173997574,3.81152053,176.27,176.23,0.69]
[1762173997757,3.81152053,176.26,176.23,0.69]
[1762173997963,3.81152053,176.27,176.23,0.69]
[1762173998454,5.62825862,176.27,176.23,0.69]
[1762173999068,5.62825862,176.26,176.24,5.67408079]
[1762173999290,1.81673809,176.26,176.24,5.67408079]
[1762173999575,5.62825862,176.26,176.24,6.36408079]
[1762173999871,1.81673809,176.26,176.24,6.36408079]
[1762174000077,3.81152053,176.26,176.25,0.69]
[1762174000264,3.81152053,176.27,176.25,0.69]
[1762174000868,0.2,176.29,176.25,0.69]
[1762174000869,3.81152053,176.28,176.26,1.81673809]
[1762174001058,3.81152053,176.28,176.26,5.67343696]
[1762174001259,3.81152053,176.28,176.27,0.69]
[1762174002160,3.81152053,176.28,176.27,6.3631151]
[1762174003170,0.2,176.29,176.27,8.17985319]
[1762174003373,4.01152053,176.29,176.28,0.68]
[1762174003554,0.2,176.29,176.28,0.68]
[1762174004256,4.01152053,176.29,176.28,6.35279328]
[1762174004469,4.01152053,176.29,176.24,17.99666841]
[1762174004470,0.2,176.29,176.24,17.99666841]
[1762174004755,1.81673809,176.27,176.25,6.35375886]
[1762174004967,3.81152053,176.27,176.25,6.35375886]
[1762174005288,5.62825862,176.26,176.24,5.67405487]
[1762174005601,1.81673809,176.26,176.24,6.35405487]
[1762174005880,5.62825862,176.25,176.24,5.67405487]
[1762174006083,1.81673809,176.25,176.24,5.67405487]
[1762174006262,1.81673809,176.25,176.23,5.67440276]
[1762174006583,5.62825862,176.25,176.23,6.35440276]
[1762174006876,1.81673809,176.26,176.24,0.68]
[1762174007062,3.81152053,176.25,176.24,0.68]
[1762174007456,3.81152053,176.26,176.24,0.68]
[1762174007681,3.81152053,176.25,176.24,0.68]
[1762174007882,3.81152053,176.27,176.24,0.68]
[1762174008083,3.81152053,176.26,176.24,0.68]
[1762174008378,3.81152053,176.25,176.24,6.35408079]
[1762174008957,3.81152053,176.27,176.24,6.35408079]
[1762174009158,3.81152053,176.26,176.25,0.68]
[1762174009867,3.81152053,176.27,176.25,0.68]
[1762174010067,22.40873809,176.28,176.25,0.68]
[1762174010068,3.81152053,176.26,176.25,0.68]
[1762174010280,3.81152053,176.26,176.25,6.35375886]
[1762174010484,3.81152053,176.26,176.25,5.67375886]
[1762174010863,3.81152053,176.26,176.25,6.35375886]
[1762174011079,3.81152053,176.27,176.25,6.35375886]
[1762174011273,3.80731007,176.26,176.25,6.35375886]
[1762174011476,3.80731007,176.26,176.25,5.67375886]
[1762174011896,3.80731007,176.26,176.24,5.67408079]
[1762174012099,3.8073115,176.27,176.25,1.81673809]
[1762174012395,0.2,176.29,176.26,1.81673809]
[1762174012577,0.2,176.29,176.28,1.81673809]
[1762174013201,0.2,176.29,176.28,2.49673809]
[1762174013579,0.2,176.29,176.28,6.35279328]
[1762174013580,4.00546294,176.29,176.28,6.35279328]
[1762174013800,4.00546294,176.29,176.28,5.67279328]
[1762174014185,0.2,176.29,176.28,5.67279328]
[1762174014787,0.2,176.29,176.27,5.6731151]
[1762174015995,0.2,176.29,176.27,6.3531151]
[1762174017607,0.2,176.29,176.27,5.6731151]
[1762174018124,2.01673809,176.29,176.27,5.6731151]
[1762174018306,2.73673809,176.29,176.27,5.6731151]
[1762174018811,2.73673809,176.29,176.26,5.67343696]
[1762174019109,0.2,176.29,176.26,5.67343696]
[1762174019608,0.2,176.29,176.26,6.35343696]
[1762174019795,4.00266364,176.29,176.26,6.35343696]
[1762174019999,0.2,176.29,176.26,6.35343696]
[1762174020392,0.2,176.29,176.27,0.68]
[1762174020592,6.53940173,176.29,176.25,19.85815602]
[1762174020806,2.73673809,176.29,176.25,19.85815602]
[1762174021013,1.81673809,176.27,176.25,5.67375886]
[1762174021194,0.72,176.26,176.25,5.67375886]
[1762174021393,1.81673809,176.27,176.25,5.67375886]
[1762174021603,2.53673809,176.27,176.25,5.67375886]
[1762174021789,0.72,176.27,176.25,5.67375886]
[1762174022597,0.72,176.27,176.23,19.8601832]
[1762174022800,0.72,176.27,176.23,20.5401832]
[1762174023918,0.2,176.29,176.26,1.81673809]
[1762174024097,0.2,176.29,176.28,1.81673809]
[1762174024416,0.2,176.29,176.28,11.60556578]
[1762174024721,1e-08,176.29,176.28,18.10052063]
[1762174026008,1e-08,176.29,176.28,6.35279328]
[1762174030724,1e-08,176.29,176.28,5.67279328]
[1762174032323,2.5367381,176.29,176.2,0.68]
[1762174032512,1.81673809,176.25,176.2,0.68]
[1762174032717,1.81673809,176.23,176.21,5.67504681]
[1762174033326,0.68,176.23,176.21,5.67504681]
[1762174033529,2.49673809,176.25,176.21,20.57266385]
[1762174034025,24.39466364,176.28,176.22,2.52673809]
[1762174034333,1.81673809,176.25,176.21,14.18761704]
[1762174034514,0.68,176.24,176.21,14.18761704]
[1762174035018,2.49673809,176.24,176.21,14.18761704]
[1762174035216,2.49673809,176.24,176.2,5.67536889]
[1762174035417,0.68,176.23,176.2,5.67536889]
[1762174036024,0.68,176.23,176.2,19.86379113]
[1762174036218,0.68,176.23,176.2,14.18842224]
[1762174037931,1.81673809,176.24,176.21,0.71]
[1762174038113,0.68,176.24,176.2,16.71516033]
[1762174038313,0.68,176.24,176.2,21.68052922]
[1762174038833,0.68,176.24,176.21,1.81673809]
[1762174039234,21.272,176.28,176.23,1.81673809]
[1762174039537,3.81628104,176.27,176.25,1.81673809]
[1762174039723,0.68,176.28,176.25,1.81673809]
[1762174039917,3.81591946,176.27,176.25,1.81673809]
[1762174040228,0.68,176.28,176.24,1.81673809]
[1762174040436,4.49683051,176.27,176.25,5.67375886]
[1762174040656,3.81683051,176.26,176.25,5.67375886]
[1762174043447,0.68,176.28,176.25,5.67375886]
[1762174043621,3.81824126,176.27,176.25,5.67375886]
[1762174043824,1e-08,176.29,176.26,3.54679149]
[1762174044021,3.81799186,176.28,176.26,3.54679149]
[1762174044234,3.81811664,176.27,176.25,22.69494751]
[1762174044434,0.68,176.28,176.25,22.69494751]
[1762174044640,3.81862226,176.27,176.25,22.69494751]
[1762174044927,20.59200001,176.29,176.25,23.40494751]
[1762174045143,3.81857929,176.28,176.25,22.69494751]
[1762174045326,3.81857929,176.27,176.26,0.71]
[1762174045526,3.81857929,176.27,176.25,23.40494751]
[1762174045849,1e-08,176.29,176.25,23.40494751]
[1762174046037,3.81887621,176.28,176.25,23.40494751]
[1762174046245,1e-08,176.29,176.25,23.40494751]
[1762174046444,3.81866814,176.28,176.25,23.40494751]
[1762174046631,1e-08,176.29,176.27,5.6731151]
[1762174046836,3.81873167,176.28,176.27,5.6731151]
[1762174047035,1e-08,176.29,176.27,5.6731151]
[1762174047850,1e-08,176.29,176.28,3.54679149]
[1762174048741,1e-08,176.29,176.28,9.21958477]
[1762174050159,1e-08,176.29,176.28,3.54679149]
[1762174050360,1e-08,176.29,176.28,5.67279328]
[1762174050538,3.8179034,176.29,176.28,5.67279328]
[1762174050959,4.4979034,176.29,176.28,5.67279328]
[1762174051649,4.4979034,176.29,176.27,5.67306878]
[1762174051846,3.81790339,176.28,176.27,5.67306878]
[1762174052432,4.49790339,176.28,176.27,5.67306878]
[1762174052634,4.49790339,176.28,176.21,14.89761704]
[1762174052635,7.33469488,176.28,176.21,14.89761704]
[1762174052837,4.49790339,176.27,176.23,8.51119425]
[1762174053041,3.81790339,176.26,176.23,22.69720117]
[1762174053250,3.81790339,176.25,176.24,0.7]
[1762174053458,0.70000001,176.29,176.24,3.53679149]
[1762174053646,3.82012355,176.28,176.24,3.53679149]
[1762174053844,3.82012355,176.27,176.24,3.53679149]
[1762174054047,3.82012355,176.26,176.24,3.53679149]
[1762174054250,0.70000001,176.29,176.24,3.53679149]
[1762174054558,3.82020724,176.28,176.25,5.67375886]
[1762174054856,3.82020724,176.27,176.25,5.67375886]
[1762174055150,3.82020724,176.26,176.25,8.51055035]
[1762174055359,3.82020724,176.26,176.25,9.21055035]
[1762174055551,3.82020724,176.26,176.25,8.51055035]
[1762174057248,0.70000001,176.29,176.25,8.51055035]
[1762174057451,3.82021215,176.28,176.25,8.51055035]
[1762174057648,3.82021215,176.27,176.25,22.69494751]
[1762174057854,0.70000001,176.29,176.25,22.69494751]
[1762174058041,3.82021042,176.28,176.26,3.53679149]
[1762174058242,20.59200001,176.29,176.27,2.83679149]
[1762174058243,1e-08,176.29,176.27,2.83679149]
[1762174058441,3.81999819,176.28,176.25,19.85815602]
[1762174058649,1e-08,176.29,176.25,14.18439716]
[1762174058854,3.82000034,176.28,176.26,0.7]
[1762174059052,1e-08,176.29,176.26,0.7]
[1762174059256,3.81999891,176.28,176.26,0.7]
[1762174059564,1e-08,176.29,176.28,5.67279328]
[1762174059768,3.81982591,176.29,176.28,5.67279328]
[1762174060848,3.81982591,176.29,176.27,5.6731151]
[1762174061061,1e-08,176.29,176.27,9.20990659]
[1762174061366,0.70000001,176.29,176.27,5.6731151]
[1762174061859,3.81979825,176.28,176.27,5.6731151]
[1762174062061,0.70000001,176.29,176.27,5.6731151]
[1762174062654,1e-08,176.29,176.27,5.6731151]
[1762174064759,3.82006949,176.28,176.26,5.67343696]
[1762174064953,3.5167915,176.29,176.26,5.67343696]
[1762174065245,7.33683076,176.28,176.26,5.67343696]
[1762174065446,3.82003927,176.27,176.25,5.67365332]
[1762174065763,4.50003927,176.26,176.25,5.67365332]
[1762174066074,4.50003927,176.26,176.23,5.67440276]
[1762174066268,3.82003927,176.25,176.23,5.67440276]
[1762174066567,0.68,176.25,176.23,5.67440276]
[1762174066961,0.68,176.25,176.22,19.8612938]
[1762174067344,0.68,176.25,176.22,20.5412938]
[1762174067544,2.83679149,176.27,176.22,20.5412938]
[1762174067768,4.50074185,176.26,176.22,20.5412938]
[1762174067960,3.82074185,176.25,176.22,23.37808529]
[1762174068182,0.68,176.26,176.22,23.37808529]
[1762174068364,3.82064404,176.25,176.22,23.37808529]
[1762174068666,0.68,176.26,176.22,23.37808529]
[1762174068868,3.82064404,176.25,176.22,23.37808529]
[1762174069053,0.68,176.26,176.22,20.5412938]
[1762174069369,3.82064476,176.25,176.22,23.37808529]
[1762174069555,0.68,176.26,176.22,23.37808529]
[1762174069755,3.82065772,176.25,176.22,23.37808529]
[1762174069956,0.68,176.26,176.22,23.37808529]
[1762174070149,3.82065844,176.25,176.23,2.83679149]
[1762174070350,3.82131485,176.24,176.23,2.83679149]
[1762174070753,3.82131485,176.24,176.23,8.51119425]
[1762174070960,3.51679149,176.28,176.23,23.37720117]
[1762174071163,4.50118266,176.27,176.23,23.37720117]
[1762174071353,3.82118266,176.26,176.23,22.69720117]
[1762174071557,3.82118266,176.25,176.23,22.69720117]
[1762174071757,0.68,176.26,176.23,22.69720117]
[1762174071946,3.82147725,176.25,176.23,22.69720117]
[1762174072148,0.68,176.26,176.23,22.69720117]
[1762174072362,3.82163935,176.25,176.23,22.69720117]
[1762174072647,0.68,176.26,176.23,22.69720117]
[1762174072868,3.82170522,176.25,176.24,0.68]
[1762174074266,3.82170522,176.25,176.24,5.67408079]
[1762174074769,3.82170522,176.25,176.24,9.19087228]
[1762174077564,0.68,176.28,176.24,23.37607427]
[1762174077769,3.82288409,176.27,176.25,2.83679149]
[1762174077947,3.82288409,176.26,176.25,2.83679149]
[1762174078152,3.82288409,176.26,176.24,22.69607427]
[1762174078465,3.82288409,176.25,176.24,22.69607427]
[1762174079570,3.82288409,176.25,176.24,23.37607427]